bitfinex/quotes_ETHUSD_20260121
["timestamp","ask_amount","ask_price","bid_price","bid_amount"]
[1769004058657,2.599422,2931.9,2930.7,0.95603793]
[1769004058857,2.141344,2931.9,2930.7,0.95603793]
[1769004059058,0.0008,2932.0,2930.7,0.95603793]
[1769004059295,0.0008,2932.0,2930.6,10.23681156]
[1769004059296,0.0008,2932.0,2931.2,0.9492734]
[1769004059596,0.0008,2932.0,2930.6,0.9492734]
[1769004059597,22.706595,2931.9,2930.6,0.9492734]
[1769004059758,3.41146339,2932.0,2930.8,0.9492734]
[1769004059759,2.61180584,2931.8,2930.8,0.9492734]
[1769004059959,6.573438,2931.9,2930.8,0.9492734]
[1769004060366,6.573438,2931.9,2929.6,0.03413435]
[1769004060571,26.950735,2931.8,2930.2,5.0744834]
[1769004060769,6.08008538,2931.9,2929.7,0.9492734]
[1769004060770,6.05773499,2931.4,2929.7,0.9492734]
[1769004060969,26.950735,2931.2,2929.7,0.9492734]
[1769004061292,26.950735,2931.0,2929.7,0.9492734]
[1769004061457,26.950735,2930.8,2929.7,0.9492734]
[1769004061659,6.54054,2930.6,2929.7,0.9492734]
[1769004061872,0.03379522,2930.5,2929.7,0.9492734]
[1769004062070,26.950735,2931.0,2929.7,0.9492734]
[1769004062270,26.950735,2930.8,2929.7,0.9492734]
[1769004062469,3.38079071,2930.9,2929.9,0.9492734]
[1769004062771,0.03379522,2931.3,2930.1,0.9492734]
[1769004062975,19.810288,2931.6,2930.1,0.9492734]
[1769004063278,11.681451,2931.4,2930.1,0.9492734]
[1769004063481,11.978714,2931.2,2930.1,0.9492734]
[1769004063659,24.284077,2931.0,2929.9,0.002]
[1769004063865,26.950735,2930.8,2929.9,0.002]
[1769004064065,26.950735,2930.6,2929.7,0.9492734]
[1769004064367,26.950735,2930.8,2929.7,0.94527912]
[1769004064572,12.783935,2930.6,2929.7,0.94527912]
[1769004064769,4.61302602,2931.1,2929.7,4.35857366]
[1769004064770,1.28177302,2930.5,2929.7,4.35857366]
[1769004065066,0.03379522,2931.0,2929.8,0.98340542]
[1769004065267,0.03379522,2931.0,2929.8,0.9492734]
[1769004065659,4.623729,2931.3,2929.8,0.98340542]
[1769004065864,4.542065,2931.1,2930.1,0.9492734]
[1769004066077,6.82174772,2931.8,2930.1,0.98340192]
[1769004066272,4.484615,2931.6,2930.2,0.9492734]
[1769004066576,2.084566,2931.4,2930.4,0.9492734]
[1769004066765,0.03379522,2931.3,2930.4,0.9492734]
[1769004066966,6.967215,2931.2,2930.4,0.9492734]
[1769004067165,0.03379522,2931.1,2930.4,0.9492734]
[1769004067366,14.270948,2931.5,2930.4,0.9492734]
[1769004067578,6.976776,2931.3,2930.4,0.9492734]
[1769004067789,0.03379522,2931.2,2930.4,0.9492734]
[1769004067994,6.120776,2931.3,2930.4,0.9492734]
[1769004068196,0.03379522,2931.2,2930.4,0.9492734]
[1769004068498,5.934536,2931.3,2930.4,0.9492734]
[1769004068697,0.63062834,2931.2,2930.4,0.9492734]
[1769004068997,0.03379522,2931.4,2930.4,0.9492734]
[1769004070077,0.03379522,2931.5,2930.4,0.9492734]
[1769004071065,0.03379522,2931.5,2929.6,0.002]
[1769004071288,0.06013989,2931.5,2929.7,0.9492734]
[1769004071588,0.02634467,2931.4,2929.7,0.9492734]
[1769004071787,0.03834467,2931.2,2929.7,0.9352734]
[1769004072002,6.82360968,2931.0,2929.7,0.90731346]
[1769004072192,0.59779522,2930.9,2929.7,0.90731346]
[1769004073718,0.59779522,2930.9,2928.8,3.41431527]
[1769004073882,1.73821733,2930.8,2928.9,0.9492734]
[1769004074077,6.82454104,2930.6,2929.0,0.9492734]
[1769004074283,0.03379522,2930.5,2929.0,0.9492734]
[1769004075292,0.03379522,2930.5,2929.2,0.9492734]
[1769004075492,3.44606328,2930.7,2929.2,0.9492734]
[1769004075683,0.68581914,2930.6,2929.2,0.9492734]
[1769004075882,0.03379522,2930.5,2929.2,0.9492734]
[1769004076094,0.68581914,2930.6,2929.3,1.02993183]
[1769004076318,6.82385664,2930.9,2929.3,1.02993183]
[1769004076492,0.03379522,2930.8,2929.3,0.99579399]
[1769004077093,0.03379522,2930.8,2929.5,0.99579399]
[1769004078195,6.82430818,2930.7,2929.5,0.82779399]
[1769004078502,0.03379522,2930.6,2929.5,0.82779399]
[1769004078706,0.68581034,2930.5,2929.5,0.82779399]
[1769004078923,0.03379522,2930.4,2929.5,0.82779399]
[1769004080637,3.44630651,2930.4,2929.5,0.82779399]
[1769004081713,0.03379522,2930.4,2929.5,0.82779399]
[1769004082032,0.68581034,2930.5,2929.5,0.82779399]
[1769004082241,0.001,2931.0,2929.6,0.99579399]
[1769004082534,6.85844197,2931.0,2929.6,0.99579399]
[1769004082740,6.82364675,2931.0,2929.6,0.99579399]
[1769004083836,3.41133929,2931.4,2929.8,0.99579399]
[1769004084136,0.38702296,2931.3,2930.0,0.99579399]
[1769004084638,3.7984912,2931.3,2930.0,0.99579399]
[1769004086237,0.38702296,2931.3,2930.1,0.99579399]
[1769004086528,3.79849172,2931.3,2930.1,0.99579399]
[1769004086733,0.37984917,2931.2,2930.1,0.99579399]
[1769004087103,0.38702296,2931.3,2930.1,0.99579399]
[1769004087298,0.03308903,2931.3,2930.1,0.99579399]
[1769004087501,1.79505155,2933.5,2930.0,3.41296525]
[1769004087502,0.0008,2932.0,2930.4,0.99579399]
[1769004088040,0.001,2931.1,2930.4,0.99579399]
[1769004088230,0.0008,2932.0,2930.5,6.82477392]
[1769004088404,0.0008,2932.0,2930.7,0.99579399]
[1769004089212,0.03388903,2932.0,2930.1,0.99579399]
[1769004089534,0.0008,2932.0,2930.5,0.99579399]
[1769004089736,0.03308903,2931.9,2930.5,0.99579399]
[1769004090438,0.03308903,2931.9,2930.7,0.99579399]
[1769004090633,0.34445674,2931.8,2930.7,0.99579399]
[1769004091233,0.0008,2932.0,2930.7,0.99579399]
[1769004091433,3.44456996,2932.0,2930.7,0.99579399]
[1769004092814,0.03388903,2932.0,2930.7,3.41213896]
[1769004093022,0.0008,2932.0,2930.8,0.99579399]
[1769004093329,0.03308903,2931.9,2930.8,0.99579399]
[1769004093640,0.34445424,2931.8,2930.8,0.99579399]
[1769004093941,0.03308903,2931.7,2930.8,0.99579399]
[1769004096005,0.03308903,2931.9,2930.8,0.99579399]
[1769004096828,3.41087386,2931.8,2930.8,0.99579399]
[1769004097028,3.41087386,2931.8,2930.2,3.41271663]
[1769004097029,0.03308903,2931.7,2929.8,0.99579399]
[1769004097234,0.68548368,2931.6,2930.2,0.99579399]
[1769004097422,0.03308903,2931.5,2930.2,0.99579399]
[1769004098033,0.03308903,2931.5,2930.0,0.99579399]
[1769004098255,0.03308903,2931.5,2930.3,0.99579399]
[1769004098607,0.68548368,2931.6,2930.3,0.99579399]
[1769004098836,6.82244584,2931.5,2930.3,0.99579399]
[1769004099009,0.75079295,2931.4,2930.3,0.99579399]
[1769004099218,0.03308903,2931.3,2930.3,0.99579399]
[1769004099409,0.75079295,2931.4,2930.3,0.99579399]
[1769004099743,0.03308903,2931.3,2929.8,0.99579399]
[1769004099951,0.03308903,2931.3,2929.8,0.99395613]
[1769004100106,0.75731502,2931.2,2929.8,0.99395613]
[1769004100301,0.03308903,2931.1,2929.7,0.002]
[1769004100536,0.03308903,2931.1,2929.7,0.9957978]
[1769004100942,6.54896358,2930.9,2929.7,3.81e-06]
[1769004102844,7.38760968,2931.0,2929.7,3.81e-06]
[1769004103041,3.41203766,2930.8,2929.7,3.81e-06]
[1769004103206,6.82407532,2930.8,2929.7,3.81e-06]
[1769004104321,4.49190532,2930.9,2929.8,0.99579399]
[1769004104548,0.03308903,2930.8,2929.8,0.99579399]
[1769004105023,3.44524038,2930.8,2929.8,0.99579399]
[1769004105358,3.44524038,2930.8,2926.9,0.002]
[1769004105359,0.88283456,2929.5,2926.9,0.002]
[1769004105543,0.0008,2928.7,2927.4,0.99709101]
[1769004105851,0.0008,2928.7,2927.5,0.99509101]
[1769004106262,0.0008,2928.7,2927.4,0.002]
[1769004106430,0.0008,2928.7,2927.4,0.99709101]
[1769004107669,0.0008,2928.7,2927.5,0.01815759]
[1769004107955,0.0008,2928.7,2927.6,0.99509101]
[1769004109052,0.0008,2928.7,2927.4,0.002]
[1769004109253,0.0008,2928.7,2927.2,0.99509101]
[1769004111722,0.0008,2928.7,2927.4,0.99509101]
[1769004112455,0.0008,2928.7,2927.4,0.99709101]
[1769004112955,0.0008,2928.7,2927.6,0.99509101]
[1769004113154,0.0008,2928.7,2927.8,0.99509101]
[1769004113757,0.0008,2928.7,2927.4,0.99709101]
[1769004115531,0.68295353,2928.6,2927.4,0.99709101]
[1769004115753,0.04268396,2928.5,2927.4,0.99709101]
[1769004117864,3.45742054,2928.5,2927.4,0.99709101]
[1769004118529,3.45740432,2928.5,2927.4,0.99709101]
[1769004119156,0.04268396,2928.5,2927.4,0.99709101]
[1769004119357,0.41403252,2928.4,2927.4,0.99709101]
[1769004120161,0.0008,2928.7,2927.4,0.99709101]
[1769004120328,3.45804092,2928.7,2927.6,0.9754207]
[1769004120528,0.0008,2928.7,2927.8,0.9754207]
[1769004120764,3.41495269,2929.0,2928.0,0.9754207]
[1769004120967,0.68290541,2928.9,2928.0,0.9754207]
[1769004121176,0.68290541,2928.9,2928.1,0.9754207]
[1769004121733,0.04267959,2928.8,2927.8,1.5404207]
[1769004121975,0.04267959,2928.8,2927.9,0.9754207]
[1769004122838,0.04267959,2928.8,2927.5,0.9754207]
[1769004123057,1.02857112,2928.7,2927.5,0.9754207]
[1769004123268,0.04268251,2928.6,2927.5,0.9754207]
[1769004123762,3.41471743,2928.5,2927.5,0.9754207]
[1769004123938,0.04268542,2928.4,2927.5,0.9754207]
[1769004125257,0.001,2928.6,2927.5,0.9754207]
[1769004125439,0.001,2928.6,2927.7,0.9754207]
[1769004126141,0.93728297,2928.6,2927.4,0.002]
[1769004126343,0.04268396,2928.5,2927.4,0.002]
[1769004127157,0.001,2928.6,2927.4,0.002]
[1769004127359,0.04368251,2928.6,2927.4,0.002]
[1769004127873,3.41471743,2928.5,2927.4,0.002]
[1769004128045,0.7299861,2928.4,2927.4,0.002]
[1769004128974,0.68730068,2928.4,2927.4,0.99558358]
[1769004129168,0.001,2928.6,2927.4,0.99558358]
[1769004129545,0.04368251,2928.6,2927.4,0.99558358]
[1769004129749,3.45835408,2928.6,2927.4,0.99558358]
[1769004130077,0.001,2928.6,2927.4,0.99558358]
[1769004130575,3.45829914,2928.6,2927.4,0.99558358]
[1769004130780,0.34582991,2928.5,2927.4,0.99558358]
[1769004132177,3.45829491,2928.6,2927.4,0.99558358]
[1769004133788,3.4582834,2928.6,2927.4,0.99558358]
[1769004134076,6.87288429,2928.6,2927.4,0.99558358]
[1769004134280,6.87288429,2928.6,2927.4,0.002]
[1769004134281,0.93628297,2928.5,2927.4,0.002]
[1769004134494,0.97896839,2928.4,2927.4,0.002]
[1769004135581,0.97896839,2928.4,2927.1,0.0036]
[1769004136089,0.94812569,2927.8,2926.6,0.57736805]
[1769004136254,0.0008,2927.4,2926.6,0.002]
[1769004136651,0.0008,2927.4,2926.2,0.9068293]
[1769004136652,0.94892569,2927.4,2925.5,0.0036]
[1769004136853,0.94812569,2927.3,2926.2,0.002]
[1769004137137,0.94652569,2927.3,2925.5,0.0036]
[1769004137951,0.94812569,2927.1,2925.5,0.0036]
[1769004138151,13.66493576,2927.2,2925.5,0.0036]
[1769004138152,0.94812569,2926.9,2925.5,0.0036]
[1769004138856,0.94812569,2926.7,2925.5,0.0036]
[1769004139159,0.0008,2925.8,2924.5,0.9068293]
[1769004139679,0.0008,2926.1,2925.1,0.9068293]
[1769004140247,0.0008,2926.1,2924.7,0.9068293]
[1769004140482,3.4167699,2926.8,2925.2,0.9068293]
[1769004140647,0.34167699,2926.7,2925.4,0.9068293]
[1769004141690,0.94812569,2926.6,2925.0,0.9068293]
[1769004142010,0.94812569,2926.6,2924.6,1.4718293]
[1769004142205,0.34167699,2926.7,2924.6,1.4718293]
[1769004142206,4.36517677,2926.5,2924.8,0.9068293]
[1769004143785,0.94812569,2926.5,2924.8,0.9068293]
[1769004143991,0.43651109,2926.4,2924.9,0.9068293]
[1769004144188,0.43651109,2926.4,2925.0,7.74443612]
[1769004144393,3.75856937,2926.7,2925.0,7.74443612]
[1769004144694,7.17546175,2926.7,2925.0,4.32563271]
[1769004145797,7.17546175,2926.7,2925.1,0.9068293]
[1769004146003,3.75856937,2926.7,2925.1,0.9068293]
[1769004146204,0.3843872,2926.7,2925.2,4.32539897]
[1769004147001,3.80125162,2926.7,2925.2,4.32539897]
[1769004147317,0.3843872,2926.7,2925.2,7.74396864]
[1769004147513,4.36506001,2926.6,2924.9,0.9068293]
[1769004147717,0.04271313,2926.5,2925.1,3.41868217]
[1769004147913,0.04271313,2926.5,2925.1,7.74419801]
[1769004148412,0.04271313,2926.5,2925.2,0.9088293]
[1769004148792,0.04371313,2926.5,2925.2,0.9088293]
[1769004149005,0.44088398,2926.4,2925.2,0.9088293]
[1769004149216,0.04371313,2926.5,2925.2,0.9088293]
[1769004149387,0.001,2926.5,2925.2,0.9088293]
[1769004149588,0.04371313,2926.5,2925.2,0.9088293]
[1769004149816,0.001,2926.5,2925.2,0.9088293]
[1769004149996,0.04371313,2926.5,2925.2,0.9088293]
[1769004150319,0.001,2926.5,2925.3,0.9068293]
[1769004150524,0.04371313,2926.5,2925.4,3.41833595]
[1769004150711,0.001,2926.5,2925.4,3.41833595]
[1769004151012,0.04371313,2926.5,2925.4,3.41833595]
[1769004151197,0.001,2926.5,2925.4,3.41833595]
[1769004154021,0.001,2926.5,2925.3,4.3252231]
[1769004154523,0.001,2926.5,2925.3,0.9068293]
[1769004154727,0.04371313,2926.5,2925.3,7.74371692]
[1769004155520,0.04371313,2926.5,2925.3,6.83688762]
[1769004155719,0.001,2926.5,2925.4,0.9068293]
[1769004156095,0.001,2926.5,2925.5,0.9068293]
[1769004156296,0.001,2926.5,2925.3,6.83688762]
[1769004156692,0.001,2926.5,2925.6,0.9068293]
[1769004158731,0.001,2926.5,2925.7,3.41798543]
[1769004159646,0.001,2926.5,2925.7,6.83597086]
[1769004159822,0.001,2926.5,2925.7,3.41798543]
[1769004161401,0.001,2926.5,2925.6,4.32687436]
[1769004161797,0.001,2926.5,2925.6,0.002]
[1769004162219,0.99183882,2926.5,2925.6,0.002]
[1769004162531,0.99183882,2926.5,2925.5,0.0016]
[1769004162532,0.94912569,2926.5,2925.5,0.0016]
[1769004162706,0.0008,2925.8,2925.4,0.002]
[1769004163219,0.94892569,2925.8,2925.4,0.002]
[1769004163394,0.0008,2925.8,2925.4,0.002]
[1769004167311,0.0008,2926.1,2925.4,0.98617883]
[1769004168525,0.001,2926.5,2925.5,0.96900792]
[1769004168720,0.98256389,2927.3,2925.7,0.96900792]
[1769004168914,0.0008,2927.4,2926.1,0.96900792]
[1769004170341,0.98336389,2927.4,2925.9,3.4177518]
[1769004170501,1.02526535,2927.3,2925.9,3.4177518]
[1769004170925,0.98256389,2927.2,2925.7,4.38693923]
[1769004171117,0.98256389,2927.0,2925.4,0.98921531]
[1769004171363,0.98256389,2926.8,2925.7,3.41793536]
[1769004171664,1.02527265,2926.8,2925.7,3.41793536]
[1769004171847,0.98256389,2926.8,2925.7,3.41793536]
[1769004172228,0.04271021,2926.7,2925.6,3.41803866]
[1769004172755,0.04271021,2926.7,2925.7,3.41796503]
[1769004173567,0.04271021,2926.7,2925.6,3.43827631]
[1769004173723,0.04271021,2926.7,2925.6,3.42006442]
[1769004174274,0.98256389,2926.8,2925.6,6.85637972]
[1769004174423,0.98256389,2926.8,2925.6,6.83816668]
[1769004174732,0.04271021,2926.7,2925.6,3.42006442]
[1769004174932,0.98256389,2926.8,2925.6,3.42006442]
[1769004174933,0.98256389,2926.8,2925.6,3.43827746]
[1769004175134,0.98256389,2926.8,2925.6,6.85637972]
[1769004175333,0.04271021,2926.7,2925.6,0.002]
[1769004175535,0.04271021,2926.7,2925.6,3.42007748]
[1769004176126,1.0252741,2926.7,2925.6,0.002]
[1769004176668,0.98256389,2926.5,2925.6,0.002]
[1769004176865,0.98256389,2926.3,2925.6,0.002]
[1769004177183,1.0252814,2926.2,2925.6,0.002]
[1769004177872,0.44425992,2926.1,2925.6,0.002]
[1769004178039,1.0252814,2926.2,2925.6,0.002]
[1769004179284,4.44268872,2926.2,2925.6,0.002]
[1769004179700,1.0252814,2926.2,2925.6,0.002]
[1769004181512,0.04271459,2926.4,2925.6,0.002]
[1769004181724,0.04271605,2926.3,2925.6,0.002]
[1769004182000,0.98552595,2927.1,2925.6,1.0103853]
[1769004182157,0.001,2927.1,2925.6,1.0103853]
[1769004182588,0.98452595,2927.0,2925.6,1.0103853]
[1769004182816,0.0427073,2926.9,2925.6,1.0103853]
[1769004183177,0.04370438,2927.1,2925.6,1.0103853]
[1769004183359,0.001,2927.1,2925.8,0.99016768]
[1769004183558,0.001,2927.1,2926.0,0.99016768]
[1769004183792,0.04269417,2927.8,2926.2,0.99016768]
[1769004183997,0.98552595,2928.6,2926.6,0.99016768]
[1769004184263,0.04268396,2928.5,2926.6,0.99016768]
[1769004184468,0.001,2928.6,2926.6,0.99016768]
[1769004184676,0.001,2928.6,2927.1,0.99016768]
[1769004185091,0.001,2928.6,2926.6,0.99016768]
[1769004185263,0.04368542,2928.4,2926.7,0.99016768]
[1769004185458,4.44311664,2928.4,2926.8,7.82356934]
[1769004185663,1.02821137,2928.4,2926.8,7.82356934]
[1769004186120,4.44305127,2928.4,2926.8,7.82356934]
[1769004186419,0.98452595,2928.3,2926.7,3.4167845]
[1769004186622,0.98452595,2928.1,2926.7,3.4167845]
[1769004186776,0.04269125,2928.0,2926.7,3.4167845]
[1769004187816,0.04269125,2928.0,2926.5,6.83410216]
[1769004188314,0.98452595,2927.9,2926.4,3.41716659]
[1769004188520,0.98452595,2927.7,2926.3,0.01818571]
[1769004188812,0.98452595,2927.5,2926.1,3.4174452]
[1769004189029,1.02722595,2927.4,2926.0,0.01819101]
[1769004189234,0.98452595,2927.4,2926.0,0.01819101]
[1769004189379,0.98452595,2927.4,2926.0,1.00835869]
[1769004189746,0.98452595,2927.8,2926.1,6.83503638]
[1769004189870,0.98452595,2927.8,2926.2,0.01819217]
[1769004190074,1.02722158,2927.7,2926.2,0.01819217]
[1769004190391,1.02722158,2927.7,2926.1,3.41751819]
[1769004190593,1.02722158,2927.7,2926.1,6.85322907]
[1769004190775,1.02722158,2927.7,2926.1,3.41751819]
[1769004190991,1.7703613,2927.6,2926.1,3.43571088]
[1769004191319,0.04269854,2927.5,2926.1,3.43571088]
[1769004191836,0.04269854,2927.5,2925.6,0.002]
[1769004191837,0.98452595,2927.3,2925.6,0.002]
[1769004192107,1.02722887,2927.2,2925.7,0.01820322]
[1769004192474,1.02722887,2927.2,2925.9,0.01820436]
[1769004192890,0.04269854,2927.5,2925.9,1.00837204]
[1769004193070,0.52288309,2927.4,2925.9,1.00837204]
[1769004193274,0.04270146,2927.3,2925.9,1.00837204]
[1769004193776,0.04270146,2927.3,2926.0,6.83526998]
[1769004194088,0.04270146,2927.3,2926.1,0.01819844]
[1769004194288,0.98452595,2927.6,2926.1,0.01819844]
[1769004194289,0.04269854,2927.5,2926.1,0.01819844]
[1769004195886,0.95438919,2927.5,2926.2,3.4174014]
[1769004196093,0.95438919,2927.5,2926.2,6.8348028]
[1769004196298,3.54392223,2928.4,2926.2,6.8348028]
[1769004196299,4.32714496,2927.9,2926.3,0.99135582]
[1769004196496,0.04269271,2927.9,2926.3,0.99135582]
[1769004196697,0.04269271,2927.9,2926.4,0.97316322]
[1769004196881,0.04269271,2927.9,2926.5,0.99134769]
[1769004197578,0.001,2928.4,2926.5,0.99134769]
[1769004197777,0.001,2928.2,2926.7,0.97316322]
[1769004197983,0.001,2928.2,2926.9,0.97316322]
[1769004198377,0.001,2928.2,2927.0,0.01817217]
[1769004198710,0.001,2928.2,2927.0,0.01817289]
[1769004200077,0.001,2928.2,2927.1,3.41635065]
[1769004201386,0.91269065,2928.2,2927.1,3.41635065]
[1769004202082,0.04268979,2928.1,2927.0,3.41638386]
[1769004202693,0.001,2928.2,2927.1,0.97316322]
[1769004203730,0.001,2928.2,2927.1,0.99133247]
[1769004204296,0.001,2928.2,2927.2,3.41623394]
[1769004204593,0.001,2928.2,2927.2,6.83246788]
[1769004204830,0.001,2928.2,2927.2,7.8056311]
[1769004205037,0.001,2928.2,2927.3,0.01816686]
[1769004205233,0.001,2928.2,2927.2,4.38939716]
[1769004205433,0.001,2928.2,2927.2,4.40756465]
[1769004206338,0.001,2928.2,2927.2,7.82379859]
[1769004206538,0.001,2928.2,2927.2,7.8056311]
[1769004206739,0.001,2928.2,2927.2,4.38939716]
[1769004208152,0.001,2928.2,2927.3,0.99133008]
[1769004208825,0.001,2928.2,2927.4,3.41600054]
[1769004209003,0.001,2928.2,2927.3,0.01816686]
[1769004209208,0.91169065,2928.1,2927.0,3.41640446]
[1769004209403,0.91169065,2928.1,2926.6,4.39007836]
[1769004209404,0.04269125,2928.0,2926.6,4.39007836]
[1769004209610,0.04269125,2928.0,2927.3,0.002]
[1769004209851,0.9553819,2928.0,2927.3,0.002]
[1769004210221,0.9553819,2928.0,2926.1,6.56497965]
[1769004210222,0.0008,2927.4,2927.0,0.002]
[1769004210427,0.0008,2927.4,2926.3,3.4172645]
[1769004210754,0.91249065,2927.4,2926.1,0.002]
[1769004211066,0.91169065,2927.3,2926.1,0.002]
[1769004211612,0.91169065,2927.3,2925.9,0.002]
[1769004213152,0.91169065,2927.1,2925.9,0.002]
[1769004215444,0.91169065,2927.1,2926.0,0.01820375]
[1769004215611,0.91169065,2927.1,2925.9,0.002]
[1769004217022,0.04270146,2927.3,2926.0,0.0182025]
[1769004217232,0.95519065,2927.4,2926.1,3.41751819]
[1769004217546,0.0008,2927.4,2926.2,0.97316322]
[1769004217935,0.0008,2927.4,2926.2,0.99135759]
[1769004218849,0.0008,2927.4,2926.2,0.97316322]
[1769004219057,0.0008,2927.4,2926.2,0.99135759]
[1769004219415,0.0008,2927.4,2926.4,0.97316322]
[1769004219639,0.0008,2927.7,2926.6,0.97316322]
[1769004219807,0.0008,2927.7,2926.8,0.97316322]
[1769004220016,0.0008,2927.7,2926.9,0.9913429]
[1769004220662,0.001,2928.0,2926.9,0.9913429]
[1769004221423,0.001,2928.2,2927.1,0.97316322]
[1769004221666,0.001,2928.4,2927.3,0.97316322]
[1769004222032,0.001,2928.4,2927.4,0.97316322]
[1769004222239,3.91e-06,2928.4,2927.5,0.97316322]
[1769004222512,0.001,2928.6,2927.4,0.97316322]
[1769004222723,0.0008,2929.0,2927.6,6.56297965]
[1769004222868,0.0008,2929.0,2927.8,0.97316322]
[1769004223559,0.0008,2929.0,2928.0,0.97316322]
[1769004224180,0.95435131,2930.1,2928.2,0.97316322]
[1769004224706,3.41243712,2930.5,2928.2,0.97316322]
[1769004224707,6.43,2930.9,2928.2,0.97316322]
[1769004224893,0.91249065,2930.3,2928.4,0.97316322]
[1769004225205,0.91249065,2930.3,2927.9,17.07708595]
[1769004225206,0.95434985,2930.2,2928.2,0.97316322]
[1769004225376,0.9001628,2930.0,2928.2,0.97316322]
[1769004225576,0.9001628,2929.8,2927.8,1.06347724]
[1769004225894,0.9001628,2929.6,2928.2,3.41503454]
[1769004226200,0.04266939,2929.5,2928.2,3.41503454]
[1769004227931,0.04266939,2929.5,2927.9,0.565]
[1769004227932,0.04266939,2929.5,2928.0,3.41530054]
[1769004228080,0.04266939,2929.5,2928.0,6.83060108]
[1769004228514,0.94283219,2929.5,2928.0,6.83060108]
[1769004228818,0.94283365,2929.4,2927.6,3.41567549]
[1769004229119,0.9001628,2929.2,2927.7,3.41558942]
[1769004229284,0.9001628,2929.2,2927.5,0.93547724]
[1769004229485,6.82714512,2929.5,2927.8,3.41551819]
[1769004229486,0.9001628,2929.0,2927.8,3.41551819]
[1769004229713,0.04267813,2928.9,2927.8,3.41551819]
[1769004230519,0.9001628,2929.3,2927.8,6.83105203]
[1769004230705,0.04267376,2929.2,2927.9,0.01814822]
[1769004231316,0.9001628,2929.3,2927.9,0.95362546]
[1769004232492,0.9001628,2929.3,2928.0,6.83060108]
[1769004232693,0.04266939,2929.5,2928.1,0.01814009]
[1769004233390,0.94283219,2929.5,2928.1,0.01814009]
[1769004233590,0.9001628,2929.4,2928.1,0.01814009]
[1769004233817,0.001,2929.1,2928.1,0.95361733]
[1769004234706,0.001,2929.1,2928.2,6.83013454]
[1769004235021,0.001,2929.1,2928.3,0.01813885]
[1769004235217,0.001,2929.1,2928.3,0.95361609]
[1769004237012,0.001,2929.1,2928.4,6.82966806]
[1769004237897,0.9001628,2929.8,2928.5,0.01813532]
[1769004238222,0.99210963,2930.2,2928.5,1.00608419]
[1769004239023,0.99210963,2930.0,2928.5,1.00608419]
[1769004239323,0.04266357,2929.9,2928.6,6.82920166]
[1769004239499,0.04266357,2929.9,2928.7,0.0181226]
[1769004240331,0.99210963,2930.0,2928.7,0.0181226]
[1769004240919,0.99210963,2930.0,2928.7,1.00607147]
[1769004241131,0.99210963,2930.0,2928.7,4.42051377]
[1769004241341,0.99210963,2929.8,2928.2,3.41498504]
[1769004241626,6.82595632,2930.0,2927.9,0.98794887]
[1769004241627,0.99210963,2929.6,2927.9,0.98794887]
[1769004241792,0.04266939,2929.5,2928.5,3.41466202]
[1769004241990,1.0347732,2929.9,2928.7,3.41444939]
[1769004242217,0.99210963,2929.9,2928.8,0.01812083]
[1769004242692,0.99210963,2930.2,2928.8,0.01812083]
[1769004242908,0.99210963,2930.2,2928.8,1.0060697]
[1769004243102,0.0008,2930.3,2928.8,1.0060697]
[1769004243302,0.0008,2930.3,2929.0,0.98794887]
[1769004243530,0.0008,2930.3,2929.0,1.00606042]
[1769004243818,0.0008,2930.6,2929.2,0.98794887]
[1769004244746,0.99290963,2930.6,2928.9,7.81645103]
[1769004245029,1.03476446,2930.5,2929.0,0.01810927]
[1769004245237,1.03476446,2930.5,2929.1,3.41401795]
[1769004245421,1.43689644,2930.4,2929.2,0.01810687]
[1769004245606,0.001,2929.7,2929.2,0.01810687]
[1769004246300,0.99210963,2930.4,2929.2,0.01810687]
[1769004246797,0.99210963,2930.2,2929.1,3.41401795]
[1769004246998,0.99210963,2930.2,2929.1,6.8280359]
[1769004247227,0.99210963,2930.5,2929.0,0.98794887]
[1769004247595,0.04345338,2930.6,2929.0,0.98794887]
[1769004247793,0.04345338,2930.6,2929.2,0.98794887]
[1769004248030,1.03556301,2930.6,2929.3,0.01810397]
[1769004248330,1.03556301,2930.6,2928.8,3.41436765]
[1769004249231,0.99210963,2930.4,2928.7,3.41448052]
[1769004249529,0.99210963,2930.2,2928.7,3.41448052]
[1769004249701,0.99210963,2930.0,2928.7,3.41448052]
[1769004249901,1.0347732,2929.9,2928.7,3.41448052]
[1769004250101,1.0347732,2929.9,2928.7,6.82896476]
[1769004250629,1.0347732,2929.9,2928.7,3.41448052]
[1769004250838,1.0347732,2929.9,2928.7,3.43260197]
[1769004250999,1.0347732,2929.9,2928.7,3.41448052]
[1769004251434,0.99210963,2929.7,2928.3,3.4148341]
[1769004251730,0.99210963,2929.7,2928.5,3.41469641]
[1769004251939,0.99210963,2929.7,2928.4,3.41477665]
[1769004252137,0.99210963,2929.7,2928.3,3.4148738]
[1769004252350,0.99210963,2929.7,2928.4,3.41483039]
[1769004252705,0.99210963,2929.7,2928.5,3.41463337]
[1769004252944,1.03477611,2929.7,2928.5,6.8293508]
[1769004253140,0.99210963,2929.7,2928.5,6.8293508]
[1769004253643,0.04266066,2930.1,2928.7,0.98794887]
[1769004253853,4.44741522,2930.3,2928.8,1.00606741]
[1769004254032,0.04266066,2930.1,2928.8,1.00606741]
[1769004254345,0.0426592,2930.2,2928.8,1.00606741]
[1769004254909,1.03476446,2930.5,2928.8,1.00606741]
[1769004255109,0.99210963,2930.5,2928.8,1.00606741]
[1769004255536,0.99210963,2930.5,2929.0,0.98240648]
[1769004255838,0.0008,2930.6,2929.1,1.00051513]
[1769004256137,0.0008,2930.6,2929.3,0.98240648]
[1769004256310,0.0008,2930.6,2929.4,0.01810221]
[1769004256702,0.0008,2930.6,2929.4,1.00050869]
[1769004258407,0.0008,2930.6,2929.5,6.8271036]
[1769004258608,0.0008,2930.6,2929.6,0.01809868]
[1769004258929,0.001,2930.2,2929.6,1.00050516]
[1769004259128,0.0008,2930.6,2929.6,1.00050516]
[1769004260409,0.0008,2930.6,2929.8,0.98240648]
[1769004260745,0.0008,2930.6,2929.7,3.41331876]
[1769004260907,0.0008,2930.6,2929.7,6.84473328]
[1769004261113,0.0008,2930.6,2929.7,6.82663752]
[1769004261325,0.0008,2930.6,2929.8,0.01809515]
[1769004263025,0.0008,2930.6,2929.9,3.41308577]
[1769004263246,0.0008,2930.6,2929.7,3.41327397]
[1769004263612,0.0008,2930.6,2929.5,1.54640648]
[1769004263933,0.0008,2930.6,2929.7,3.41324623]
[1769004264123,0.0008,2930.6,2929.8,3.41317732]
[1769004264732,0.0008,2930.6,2929.8,6.82637958]
[1769004264947,0.0008,2930.6,2929.6,6.82687056]
[1769004265125,0.0008,2930.6,2929.7,0.01809691]